bitfinex/quotes_BTCUSD_20250822
["timestamp","ask_amount","ask_price","bid_price","bid_amount"]
[1755878957573,0.25910838,116840.0,116830.0,0.09411]
[1755878958457,0.24148,116840.0,116830.0,0.09838972]
[1755878958670,0.24148,116840.0,116830.0,0.09411]
[1755878959112,0.24148,116840.0,116830.0,0.57551787]
[1755878959331,0.24148,116840.0,116830.0,0.1593018]
[1755878959546,0.24148,116840.0,116830.0,0.57979759]
[1755878959754,0.24148,116840.0,116830.0,0.57551787]
[1755878959961,0.24148,116840.0,116830.0,0.09411]
[1755878960195,0.24148,116840.0,116830.0,0.57551787]
[1755878960423,0.24148,116840.0,116830.0,0.09411]
[1755878960630,0.24148,116840.0,116830.0,0.11116101]
[1755878960839,0.24148,116840.0,116830.0,0.59256888]
[1755878961049,0.24148,116840.0,116830.0,0.11116101]
[1755878961480,0.24148,116840.0,116830.0,0.11330087]
[1755878961861,0.24148,116840.0,116830.0,0.11116101]
[1755878962311,0.24148,116840.0,116830.0,0.59256888]
[1755878962511,0.00048264,116860.0,116830.0,0.75585374]
[1755878962718,0.24084264,116860.0,116840.0,0.06453031]
[1755878962928,0.24084264,116860.0,116850.0,0.00639898]
[1755878963151,0.25886477,116860.0,116850.0,0.49083685]
[1755878963358,0.25886477,116860.0,116850.0,0.00515]
[1755878963765,0.25986477,116860.0,116840.0,0.06453031]
[1755878963976,0.25986477,116860.0,116840.0,0.08761183]
[1755878964187,0.25886477,116860.0,116840.0,0.08458183]
[1755878964566,0.25886477,116860.0,116840.0,0.08761183]
[1755878964977,0.34574952,116860.0,116840.0,0.06150031]
[1755878965184,0.34574952,116860.0,116840.0,0.14634031]
[1755878965388,0.38358246,116860.0,116840.0,0.14634031]
[1755878965593,0.38458246,116860.0,116840.0,0.14634031]
[1755878965793,0.38458246,116860.0,116840.0,0.16127734]
[1755878966001,0.38358246,116860.0,116850.0,0.08007851]
[1755878966216,0.38358246,116860.0,116850.0,0.00213949]
[1755878966416,0.38458246,116860.0,116840.0,0.07643734]
[1755878966622,0.38458246,116860.0,116840.0,0.07946734]
[1755878966837,0.38458246,116860.0,116850.0,0.00427898]
[1755878967253,0.38458246,116860.0,116840.0,0.06453031]
[1755878967420,0.38358246,116860.0,116840.0,0.06453031]
[1755878967626,0.38358246,116860.0,116840.0,0.06150031]
[1755878968037,0.38358246,116860.0,116840.0,0.14634031]
[1755878968408,0.38358246,116860.0,116850.0,0.00213949]
[1755878968855,0.38458246,116860.0,116840.0,0.06150031]
[1755878969063,0.08688475,116850.0,116840.0,0.06150031]
[1755878969488,0.08688475,116850.0,116830.0,0.06150031]
[1755878969687,0.08688475,116850.0,116840.0,0.00645303]
[1755878969892,0.32532475,116850.0,116830.0,0.06150031]
[1755878970061,0.32532475,116850.0,116830.0,0.14937031]
[1755878970264,0.32532475,116850.0,116830.0,0.15151017]
[1755878970721,0.32532475,116850.0,116830.0,0.14937031]
[1755878970930,0.32532475,116850.0,116830.0,0.1790123]
[1755878971308,0.32532475,116850.0,116840.0,0.00730934]
[1755878971476,0.32532475,116850.0,116840.0,0.00627934]
[1755878971684,0.32532475,116850.0,116840.0,0.08684]
[1755878971890,0.32532475,116850.0,116840.0,0.08697967]
[1755878972498,0.32532475,116850.0,116840.0,0.08911934]
[1755878972699,0.32532475,116850.0,116840.0,0.10983431]
[1755878972897,0.32532475,116850.0,116840.0,0.11183431]
[1755878973168,0.32532475,116850.0,116840.0,0.10971431]
[1755878973369,0.32532475,116850.0,116840.0,0.11183431]
[1755878974055,0.32532475,116850.0,116840.0,0.09626934]
[1755878974311,0.32532475,116850.0,116840.0,0.09412967]
[1755878974510,0.32532475,116850.0,116840.0,0.09626934]
[1755878974631,0.32532475,116850.0,116840.0,0.09111934]
[1755878974837,0.32532475,116850.0,116840.0,0.08684]
[1755878975682,0.37715672,116850.0,116840.0,0.08684]
[1755878976473,0.37715672,116850.0,116840.0,0.002]
[1755878976864,0.71715672,116850.0,116840.0,0.002]
[1755878977256,0.71815672,116850.0,116840.0,0.002]
[1755878978121,0.75749647,116850.0,116840.0,0.002]
[1755878978324,0.35744902,116840.0,116800.0,0.07064953]
[1755878978530,0.35744902,116820.0,116800.0,0.07064953]
[1755878978736,0.08688475,116810.0,116800.0,0.07064953]
[1755878978940,0.01744902,116820.0,116800.0,0.07579953]
[1755878979143,0.08688475,116820.0,116810.0,0.00428044]
[1755878979391,0.32080475,116820.0,116810.0,0.00943044]
[1755878979592,0.32080475,116820.0,116810.0,0.49083831]
[1755878979794,0.32080475,116820.0,116810.0,0.00529488]
[1755878979999,0.32080475,116820.0,116810.0,0.00014488]
[1755878980187,0.32180475,116820.0,116810.0,0.00014488]
[1755878980519,0.32380475,116820.0,116810.0,0.00014488]
[1755878980937,0.32380475,116820.0,116810.0,0.00957532]
[1755878981335,0.36276522,116820.0,116810.0,0.00529488]
[1755878981539,0.32380475,116820.0,116810.0,0.00957532]
[1755878981755,0.23592,116820.0,116810.0,0.00957532]
[1755878981980,0.23592,116820.0,116810.0,0.00529488]
[1755878982187,0.23692,116820.0,116810.0,0.09013488]
[1755878982914,0.35207675,116820.0,116810.0,0.08498488]
[1755878983119,0.35207675,116820.0,116810.0,0.00014488]
[1755878983330,0.36952577,116820.0,116810.0,0.00014488]
[1755878983736,0.36852577,116820.0,116810.0,0.00014488]
[1755878985030,0.36952577,116820.0,116810.0,0.00014488]
[1755878985482,0.74797203,116820.0,116810.0,0.00214488]
[1755878985687,0.74797203,116820.0,116810.0,0.00014488]
[1755878985892,0.75197203,116820.0,116810.0,0.00014488]
[1755878986107,0.75597203,116820.0,116810.0,0.00014488]
[1755878987270,0.87188856,116820.0,116810.0,0.00014488]
[1755878987556,0.85597203,116820.0,116810.0,0.00014488]
[1755878987794,0.87187953,116820.0,116810.0,0.00014488]
[1755878987997,0.86787953,116820.0,116810.0,0.00014488]
[1755878988389,0.87387953,116820.0,116810.0,0.00014488]
[1755878988736,0.86387953,116820.0,116810.0,0.00014488]
[1755878988940,0.52995953,116820.0,116810.0,0.00014488]
[1755878989163,0.17805203,116820.0,116810.0,0.00114488]
[1755878989377,0.17805203,116820.0,116810.0,0.00014488]
[1755878989378,0.40357203,116820.0,116810.0,0.00014488]
[1755878989655,0.41946985,116820.0,116810.0,0.00014488]
[1755878989881,0.42946985,116820.0,116810.0,0.00114488]
[1755878990779,0.41357203,116820.0,116810.0,0.00114488]
[1755878991452,0.15222476,116820.0,116810.0,0.00628488]
[1755878991675,0.38070476,116820.0,116810.0,0.00628488]
[1755878991906,0.39815378,116820.0,116810.0,0.00628488]
[1755878992127,0.39815378,116820.0,116810.0,0.00415488]
[1755878992346,0.80511716,116820.0,116810.0,0.00628488]
[1755878992579,0.79911716,116820.0,116810.0,0.00415488]
[1755878992806,0.79511716,116820.0,116810.0,0.00315488]
[1755878993018,0.79511716,116820.0,116810.0,0.00415488]
[1755878993240,0.79511716,116820.0,116810.0,0.00628488]
[1755878993436,0.72815378,116820.0,116810.0,0.00628488]
[1755878993673,0.68870752,116820.0,116810.0,0.00628488]
[1755878993898,0.34870752,116820.0,116810.0,0.0084251]
[1755878994033,0.68870752,116820.0,116810.0,0.0084251]
[1755878994238,0.68870752,116820.0,116810.0,0.00628488]
[1755878994875,0.77557717,116820.0,116810.0,0.00628488]
[1755878995144,0.77493717,116820.0,116810.0,0.00628488]
[1755878995276,0.77493717,116820.0,116810.0,0.00114488]
[1755878995477,0.77493717,116820.0,116810.0,0.00415488]
[1755878995680,0.77493717,116820.0,116810.0,0.00628488]
[1755878996385,0.77493717,116820.0,116810.0,0.00415488]
[1755878996600,0.77493717,116820.0,116810.0,0.00628488]
[1755878997031,0.77493717,116820.0,116810.0,0.00114488]
[1755878997657,0.68806752,116820.0,116810.0,0.00628488]
[1755878998258,0.68806752,116820.0,116810.0,0.00114488]
[1755878998653,0.77597092,116820.0,116810.0,0.00415488]
[1755878999031,0.77597092,116820.0,116810.0,0.00628488]
[1755878999975,0.77598409,116820.0,116810.0,0.00114488]
[1755879000181,0.84694682,116820.0,116810.0,0.00415488]
[1755879000424,0.86285374,116820.0,116810.0,0.00114488]
[1755879000638,0.8628561,116820.0,116810.0,0.00114488]
[1755879001274,0.8708099,116820.0,116810.0,0.00114488]
[1755879002808,0.90928823,116820.0,116810.0,0.00114488]
[1755879003023,0.90972823,116820.0,116810.0,0.00114488]
[1755879003230,0.90988823,116820.0,116810.0,0.00114488]
[1755879004102,0.68144823,116820.0,116810.0,0.00114488]
[1755879004316,0.90968823,116820.0,116810.0,0.00114488]
[1755879004527,0.91566116,116820.0,116810.0,0.00114488]
[1755879004740,0.91567087,116820.0,116810.0,0.00114488]
[1755879004972,0.91767087,116820.0,116810.0,0.00114488]
[1755879005397,0.93602721,116820.0,116810.0,0.00114488]
[1755879005609,1.20523077,116820.0,116810.0,0.00114488]
[1755879005836,1.03702721,116820.0,116810.0,0.00114488]
[1755879006483,1.03702721,116820.0,116810.0,0.00014488]
[1755879006688,1.00718149,116820.0,116810.0,0.00014488]
[1755879006898,1.03909841,116820.0,116810.0,0.00014488]
[1755879007126,1.05998408,116820.0,116810.0,0.00014488]
[1755879007327,1.05698408,116820.0,116810.0,0.00014488]
[1755879007540,1.23218764,116820.0,116810.0,0.00114488]
[1755879007747,1.17173708,116820.0,116810.0,0.00114488]
[1755879007953,1.17173507,116820.0,116810.0,0.00114488]
[1755879008172,1.34293863,116820.0,116810.0,0.00114488]
[1755879008581,1.17173507,116820.0,116810.0,0.00114488]
[1755879008837,1.34293863,116820.0,116810.0,0.00114488]
[1755879009040,1.17173507,116820.0,116810.0,0.00114488]
[1755879009788,0.35744902,116810.0,116780.0,0.07064953]
[1755879009987,0.44433377,116790.0,116780.0,0.07380452]
[1755879010214,0.70240868,116790.0,116780.0,0.07593452]
[1755879010624,0.70240868,116790.0,116780.0,0.07079452]
[1755879011596,0.70340868,116790.0,116780.0,0.07279452]
[1755879011822,0.77364955,116790.0,116780.0,0.07279452]
[1755879012158,0.79939355,116790.0,116780.0,0.07379452]
[1755879012364,0.85540601,116790.0,116780.0,0.00314499]
[1755879013047,0.85440601,116790.0,116780.0,0.00327499]
[1755879013192,0.83604472,116790.0,116780.0,0.00628499]
[1755879013388,0.83704472,116790.0,116780.0,0.00114499]
[1755879013995,0.83804768,116790.0,116780.0,0.00014499]
[1755879014210,0.84104768,116790.0,116780.0,0.00628499]
[1755879014620,0.81530368,116790.0,116780.0,0.00628499]
[1755879015472,0.81530368,116790.0,116780.0,0.00114499]
[1755879016039,0.81530368,116790.0,116780.0,0.00415499]
[1755879016239,0.81530368,116790.0,116780.0,0.00628499]
[1755879016845,0.8093287,116790.0,116780.0,0.00628499]
[1755879017046,0.81529074,116790.0,116780.0,0.00628499]
[1755879017431,0.56167774,116790.0,116780.0,0.00628499]
[1755879017633,0.79122782,116790.0,116780.0,0.00628499]
[1755879017834,0.79122798,116790.0,116780.0,0.00628499]
[1755879018148,0.72098711,116790.0,116780.0,0.00628499]
[1755879019206,0.72082711,116790.0,116780.0,0.00628499]
[1755879019534,0.78666711,116790.0,116780.0,0.00628499]
[1755879019754,0.78666711,116790.0,116780.0,0.00528499]
[1755879019755,0.80111613,116790.0,116780.0,0.00528499]
[1755879019964,0.8070891,116790.0,116780.0,0.00014499]
[1755879020176,0.8882457,116790.0,116780.0,0.00114499]
[1755879020395,0.8862457,116790.0,116780.0,0.00114499]
[1755879020803,0.90459137,116790.0,116780.0,0.00114499]
[1755879021591,0.90459137,116790.0,116780.0,0.00014499]
[1755879021810,0.90559137,116790.0,116780.0,0.00014499]
[1755879022198,1.12753157,116790.0,116780.0,0.00014499]
[1755879022996,1.02752866,116790.0,116780.0,0.00014499]
[1755879023257,1.02852866,116790.0,116780.0,0.00114499]
[1755879023464,1.12852866,116790.0,116780.0,0.00099324]
[1755879023871,0.77818846,116790.0,116780.0,0.00407324]
[1755879024093,0.01744902,116770.0,116750.0,0.07064953]
[1755879024298,0.65440475,116760.0,116750.0,0.07064953]
[1755879024504,0.66236797,116760.0,116750.0,0.00202]
[1755879024704,0.66236797,116760.0,116750.0,0.0051]
[1755879024927,0.67981699,116760.0,116750.0,0.0051]
[1755879025081,0.76913798,116760.0,116750.0,0.0051]
[1755879026054,0.76117476,116760.0,116750.0,0.0051]
[1755879026259,0.67838522,116760.0,116750.0,0.0051]
[1755879026390,0.67086465,116760.0,116750.0,0.0051]
[1755879027707,0.67186465,116760.0,116750.0,0.0071]
[1755879028358,0.6798294,116760.0,116750.0,0.0071]
[1755879028582,0.6808294,116760.0,116750.0,0.0101]
[1755879028762,0.75293458,116760.0,116750.0,0.0101]
[1755879028959,0.75293458,116760.0,116750.0,0.0121]
[1755879029182,0.79098126,116760.0,116750.0,0.0121]
[1755879029381,0.79098475,116760.0,116750.0,0.0121]
[1755879032282,0.80692676,116760.0,116750.0,0.0121]
[1755879032485,0.80692676,116760.0,116750.0,0.007]
[1755879032732,0.83035353,116760.0,116750.0,0.007]
[1755879032887,0.93035353,116760.0,116750.0,0.00089084]
[1755879033229,1.12739506,116760.0,116750.0,0.00089084]
[1755879033559,1.0646681,116760.0,116710.0,0.00348]
[1755879033762,0.08688475,116730.0,116710.0,0.00396261]
[1755879033882,0.63208,116720.0,116710.0,0.00396261]
[1755879034088,0.71896475,116720.0,116710.0,0.00598261]
[1755879034931,0.71896475,116720.0,116710.0,0.00798261]
[1755879035135,0.71996475,116720.0,116710.0,0.00798261]
[1755879035335,0.75570965,116720.0,116710.0,0.00798261]
[1755879035763,0.75570965,116720.0,116710.0,0.00898261]
[1755879038036,0.75570965,116720.0,116710.0,0.00696261]
[1755879038238,0.96158965,116720.0,116710.0,0.00388261]
[1755879038418,1.04197,116720.0,116710.0,0.00388261]
[1755879038624,1.04794043,116720.0,116710.0,0.00388261]
[1755879039446,1.04694043,116720.0,116710.0,0.00188261]
[1755879039661,1.04694043,116720.0,116710.0,0.00088261]
[1755879039932,1.05194043,116720.0,116710.0,0.00288261]
[1755879040523,1.04597,116720.0,116710.0,0.00288261]
[1755879041117,1.05193418,116720.0,116710.0,0.00288261]
[1755879041335,1.05192148,116720.0,116710.0,0.00288261]
[1755879041561,1.0459573,116720.0,116710.0,0.00288261]
[1755879041787,1.05043727,116720.0,116710.0,0.00288261]
[1755879042044,1.02657414,116720.0,116710.0,0.00490261]
[1755879042271,0.78288512,116720.0,116710.0,0.00798261]
[1755879042482,1.00780512,116720.0,116710.0,0.00798261]
[1755879042728,0.40714022,116720.0,116710.0,0.00798261]
[1755879042938,0.63206022,116720.0,116710.0,0.00798261]
[1755879043160,0.92852475,116720.0,116710.0,0.00798261]
[1755879043393,0.58852475,116720.0,116710.0,0.00798261]
[1755879043613,0.92852475,116720.0,116710.0,0.00798261]
[1755879043838,1.0153944,116720.0,116710.0,0.01012467]
[1755879044060,1.0153944,116720.0,116710.0,0.00798261]
[1755879044721,0.58852475,116720.0,116710.0,0.00698261]
[1755879044973,0.29076,116720.0,116710.0,0.48739048]
[1755879045199,0.29076,116720.0,116710.0,0.09182261]
[1755879045421,0.29276,116720.0,116710.0,0.09282261]
[1755879045653,0.29276,116720.0,116710.0,0.09182261]
[1755879045873,0.29076,116720.0,116710.0,0.09282261]
[1755879046102,0.320036,116720.0,116710.0,0.09582261]
[1755879046307,0.321036,116720.0,116710.0,0.09382261]
[1755879046527,0.29076,116720.0,116710.0,0.09082261]
[1755879046745,0.29076,116720.0,116710.0,0.01426673]
[1755879047002,0.28851,116720.0,116710.0,0.4996746]
[1755879047236,0.28851,116720.0,116710.0,0.49539048]
[1755879047436,0.28851,116720.0,116710.0,0.02681834]
[1755879047874,0.28851,116720.0,116710.0,0.00998261]
[1755879048316,0.28851,116720.0,116710.0,0.01298261]
[1755879048450,0.28751,116720.0,116710.0,0.09382261]
[1755879048652,0.28751,116720.0,116710.0,0.09082261]
[1755879048848,0.28851,116720.0,116710.0,0.09182261]
[1755879049053,0.28851,116720.0,116710.0,0.09582261]
[1755879049278,0.28751,116720.0,116710.0,0.09696467]
[1755879049509,0.28751,116720.0,116710.0,0.09482261]
[1755879049708,0.28851,116720.0,116710.0,0.09782261]
[1755879051879,0.28851,116720.0,116710.0,0.10210673]
[1755879052064,0.28851,116720.0,116710.0,0.09782261]
[1755879052750,0.28851,116720.0,116710.0,0.16002978]
[1755879052966,0.28851,116720.0,116710.0,0.09782261]
[1755879054100,0.28851,116720.0,116710.0,0.10210673]
[1755879054342,0.001,116720.0,116710.0,0.09782261]
[1755879054553,0.22464,116720.0,116710.0,0.57923048]
[1755879054962,0.22464,116720.0,116710.0,0.09782261]
[1755879056707,0.001,116720.0,116710.0,0.09782261]
[1755879056907,0.22436,116720.0,116710.0,0.09782261]
[1755879058735,0.22436,116720.0,116710.0,0.10210673]
[1755879058985,0.22436,116720.0,116710.0,0.09782261]
[1755879059427,0.22436,116720.0,116710.0,0.10210673]
[1755879059886,0.001,116720.0,116710.0,0.5835146]
[1755879060109,0.22456,116720.0,116710.0,0.63758194]
[1755879060556,0.001,116720.0,116710.0,0.24305882]
[1755879060785,0.001,116720.0,116710.0,0.18470736]
[1755879061494,0.001,116720.0,116710.0,0.12356661]
[1755879061727,0.001,116720.0,116710.0,0.60497448]
[1755879062206,0.22164,116740.0,116710.0,0.12356661]
[1755879062438,0.22164,116740.0,116710.0,0.60497448]
[1755879062674,0.22164,116740.0,116710.0,0.12316794]
[1755879062891,0.22164,116740.0,116720.0,0.00298]
[1755879063348,0.30852475,116740.0,116720.0,0.00298]
[1755879063837,0.30952475,116740.0,116720.0,0.00298]
[1755879064293,0.64852475,116740.0,116730.0,0.00493]
[1755879064531,0.56164,116740.0,116730.0,0.00493]
[1755879064776,0.56264,116740.0,116730.0,0.00493]
[1755879065245,0.56264,116740.0,116730.0,0.48633787]
[1755879065472,0.56264,116740.0,116730.0,0.00493]
[1755879065707,0.22264,116740.0,116730.0,0.00493]
[1755879065932,0.22264,116740.0,116730.0,0.48633787]
[1755879066224,0.22264,116740.0,116730.0,0.05386379]
[1755879066471,0.22264,116740.0,116730.0,0.00693]
[1755879066713,0.2236,116740.0,116730.0,0.00693]
[1755879066942,0.22164,116740.0,116730.0,0.00693]
[1755879067156,0.2226,116750.0,116730.0,0.00693]
[1755879067415,0.64948475,116750.0,116740.0,0.48140787]
[1755879067642,0.5626,116750.0,116740.0,0.57385387]
[1755879067903,0.2226,116750.0,116740.0,0.57385387]
[1755879068367,0.0160199,116760.0,116740.0,0.66073862]
[1755879068603,0.223,116770.0,116750.0,0.48867051]
[1755879068844,0.223,116770.0,116760.0,0.00493]
[1755879069075,0.23916189,116770.0,116750.0,0.00298]
[1755879069530,0.32604664,116770.0,116740.0,0.090496]
[1755879069753,0.32604664,116770.0,116750.0,0.00298]
[1755879069967,0.32604664,116770.0,116750.0,0.08782]
[1755879070404,0.32604664,116770.0,116750.0,0.08484]
[1755879070630,0.32604664,116770.0,116750.0,0.08782]
[1755879070883,0.001,116760.0,116750.0,0.08698132]
[1755879071126,0.01454261,116770.0,116750.0,0.10659294]
[1755879071352,0.22312,116780.0,116760.0,0.00298]
[1755879071583,0.001,116770.0,116760.0,0.00214114]
[1755879071803,0.001,116770.0,116760.0,0.00195]
[1755879072034,0.001,116770.0,116760.0,0.00493]
[1755879072268,0.00296,116770.0,116760.0,0.00493]
[1755879072676,0.00296,116770.0,116750.0,0.00498]
[1755879073124,0.00296,116770.0,116750.0,0.00398]
[1755879073343,0.00296,116770.0,116760.0,0.00195]
[1755879073566,0.00196,116770.0,116760.0,0.001]
[1755879073797,0.01660511,116770.0,116760.0,0.001]
[1755879074012,0.00296,116770.0,116760.0,0.002]
[1755879074480,0.00296,116770.0,116760.0,0.00693]
[1755879074481,0.001,116770.0,116760.0,0.00693]
[1755879074924,0.001,116770.0,116760.0,0.48833787]
[1755879075176,0.001,116770.0,116760.0,0.05576379]
[1755879075410,0.001,116770.0,116760.0,0.06004607]
[1755879075864,0.001,116770.0,116760.0,0.00693]
[1755879076089,0.00296,116770.0,116760.0,0.002]
[1755879076308,0.00296,116770.0,116760.0,0.004]
[1755879076556,0.49754475,116770.0,116760.0,0.004]
[1755879077468,0.51499377,116770.0,116760.0,0.004]
[1755879077664,0.61782598,116770.0,116760.0,0.004]
[1755879077945,0.01744902,116760.0,116740.0,0.0001447]
[1755879078191,0.65182475,116750.0,116740.0,0.0001447]
[1755879079301,0.65184475,116750.0,116740.0,0.0001447]
[1755879079520,0.65370475,116750.0,116740.0,0.0001447]
[1755879079739,0.68560047,116750.0,116740.0,0.0001447]
[1755879079959,0.46078047,116750.0,116740.0,0.0001447]
[1755879080216,0.68560047,116750.0,116740.0,0.0001447]
[1755879080432,0.68374047,116750.0,116740.0,0.0001447]
[1755879080655,0.68374047,116750.0,116740.0,0.0011447]
[1755879081084,0.68474047,116750.0,116740.0,0.0031447]
[1755879081304,0.68660047,116750.0,116740.0,0.0031447]
[1755879081565,0.68474047,116750.0,116740.0,0.0031447]
[1755879082253,0.65284475,116750.0,116740.0,0.0031447]
[1755879084022,0.65276475,116750.0,116740.0,0.0031447]
[1755879085692,0.67207377,116750.0,116740.0,0.0031447]
[1755879086086,0.67199377,116750.0,116740.0,0.0031447]
[1755879086898,0.67199377,116750.0,116740.0,0.0021447]
[1755879087099,0.67199377,116750.0,116740.0,0.0001447]
[1755879087100,0.73819315,116750.0,116740.0,0.0001447]
[1755879087355,0.73919315,116750.0,116740.0,0.0001447]
[1755879087886,0.72174413,116750.0,116740.0,0.0001447]
[1755879088112,0.73919315,116750.0,116740.0,0.0001447]
[1755879088322,0.73933315,116750.0,116740.0,0.0011447]
[1755879088525,0.74117315,116750.0,116740.0,0.0011447]
[1755879089675,0.67213377,116750.0,116740.0,0.0011447]
[1755879089920,0.67185377,116750.0,116740.0,0.0011447]
[1755879090120,0.67369377,116750.0,116740.0,0.0011447]
[1755879091372,0.67185377,116750.0,116740.0,0.0011447]
[1755879091526,0.67369377,116750.0,116740.0,0.0011447]
[1755879091737,0.73922315,116750.0,116740.0,0.0011447]
[1755879092345,0.74106315,116750.0,116740.0,0.0011447]
[1755879092529,0.73922315,116750.0,116740.0,0.0011447]
[1755879092780,0.74106315,116750.0,116740.0,0.0011447]
[1755879092985,0.73922315,116750.0,116740.0,0.0011447]
[1755879093941,0.74105315,116750.0,116740.0,0.0011447]
[1755879094068,0.73922315,116750.0,116740.0,0.0011447]
[1755879094641,0.74105315,116750.0,116740.0,0.0011447]
[1755879097281,0.51845315,116750.0,116740.0,0.0011447]
[1755879097503,0.94713315,116750.0,116740.0,0.0011447]
[1755879098868,0.94530315,116750.0,116740.0,0.0011447]
[1755879099085,0.94978249,116750.0,116740.0,0.0011447]
[1755879099920,0.95161249,116750.0,116740.0,0.0011447]
[1755879102717,1.05161249,116750.0,116740.0,0.0011447]
[1755879102926,1.07736949,116750.0,116740.0,0.0011447]
[1755879103572,1.17736949,116750.0,116740.0,0.0011447]
[1755879103782,1.17636949,116750.0,116740.0,0.0011447]
[1755879104427,1.184364,116750.0,116740.0,0.0011447]
[1755879104650,1.21677193,116750.0,116740.0,0.0001447]
[1755879104865,1.39307813,116750.0,116740.0,0.0011447]
[1755879105074,1.4030734,116750.0,116740.0,0.0011447]
[1755879105301,1.2317672,116750.0,116740.0,0.0011447]
[1755879105498,1.41648684,116750.0,116740.0,0.0011447]
[1755879105933,1.43942802,116750.0,116740.0,0.0011447]
[1755879106152,1.42601458,116750.0,116740.0,0.0011447]
[1755879106373,1.42153524,116750.0,116740.0,0.0011447]
[1755879106573,1.42153524,116750.0,116710.0,0.0004]
[1755879106574,0.45744902,116720.0,116710.0,0.0004]
[1755879106788,0.95045783,116720.0,116710.0,0.0004]
[1755879107008,0.95826948,116720.0,116710.0,0.0004]
[1755879107441,0.93526525,116720.0,116710.0,0.0004]
[1755879107654,1.04207721,116720.0,116710.0,0.0004]
[1755879107873,0.94207721,116720.0,116710.0,0.0004]
[1755879108073,1.04207721,116720.0,116710.0,0.0004]
[1755879108287,0.94207721,116720.0,116710.0,0.0004]
[1755879108513,1.04207721,116720.0,116710.0,0.0004]
[1755879108927,1.04207721,116720.0,116710.0,0.0014]
[1755879108928,1.04407721,116720.0,116710.0,0.0014]
[1755879109130,1.04607721,116720.0,116710.0,0.0014]
[1755879109335,0.94424721,116720.0,116710.0,0.0014]
[1755879109616,0.63353265,116720.0,116710.0,0.00647]
[1755879109770,0.51473265,116720.0,116710.0,0.00647]
[1755879109979,0.51671265,116720.0,116710.0,0.0014]
[1755879110206,0.53864175,116720.0,116710.0,0.0014]
[1755879110559,0.87666175,116720.0,116710.0,0.00647]
[1755879110800,0.9635314,116720.0,116710.0,0.00647]
[1755879111010,0.9615314,116720.0,116710.0,0.00647]
[1755879111212,0.9635114,116720.0,116710.0,0.0014]
[1755879111410,0.9625114,116720.0,116710.0,0.0004]
[1755879111818,0.9625114,116720.0,116710.0,0.0024]
[1755879112703,0.9615114,116720.0,116710.0,0.0014]
[1755879113103,0.96149409,116720.0,116710.0,0.0014]
[1755879113700,0.96535409,116720.0,116710.0,0.0024]
[1755879113908,0.96349409,116720.0,116710.0,0.0024]
[1755879114110,0.96349409,116720.0,116710.0,0.0014]
[1755879114336,0.96535409,116720.0,116710.0,0.0014]
[1755879114535,0.96635409,116720.0,116710.0,0.0014]
[1755879114972,0.96449409,116720.0,116710.0,0.0014]
[1755879116120,0.96441365,116720.0,116710.0,0.0014]
[1755879116629,0.96441272,116720.0,116710.0,0.0014]
[1755879117026,0.96441209,116720.0,116710.0,0.0014]
[1755879117860,0.96441209,116720.0,116710.0,0.00337]
[1755879118092,0.96441209,116720.0,116710.0,0.0014]
[1755879118763,0.96441209,116720.0,116710.0,0.00647]
[1755879119185,0.96441209,116720.0,116710.0,0.0014]
[1755879120157,0.96243209,116720.0,116710.0,0.00337]
[1755879120366,0.96243209,116720.0,116710.0,0.0014]
[1755879120367,1.0029311,116720.0,116710.0,0.0014]
[1755879122763,1.02127902,116720.0,116710.0,0.0014]
[1755879123178,1.02313902,116720.0,116710.0,0.0014]
[1755879123635,1.02127902,116720.0,116710.0,0.0014]
[1755879123831,1.02313902,116720.0,116710.0,0.0014]
[1755879124218,1.0092052,116720.0,116710.0,0.0014]
[1755879124391,1.02315711,116720.0,116710.0,0.0014]
[1755879124838,1.02315748,116720.0,116710.0,0.0014]
[1755879125058,1.02315744,116720.0,116710.0,0.0014]
[1755879125188,0.34,116710.0,116690.0,0.0035]
[1755879125562,0.66165377,116700.0,116690.0,0.0035]
[1755879125706,0.69152882,116700.0,116690.0,0.0035]
[1755879126117,0.69152882,116700.0,116690.0,0.00547]
[1755879126314,0.69152882,116700.0,116690.0,0.00595261]
[1755879127295,0.66763335,116700.0,116690.0,0.00595261]
[1755879127501,0.7625049,116700.0,116690.0,0.00995261]
[1755879127910,0.73260668,116700.0,116690.0,0.00895261]
[1755879128126,0.75453206,116700.0,116690.0,0.00895261]
[1755879128279,0.7405815,116700.0,116690.0,0.00895261]
[1755879128490,0.7405815,116700.0,116690.0,0.01095261]
[1755879128900,0.74855632,116700.0,116690.0,0.01095261]
[1755879129143,0.76251225,116700.0,116690.0,0.01095261]
[1755879131435,0.76011225,116700.0,116690.0,0.01095261]
[1755879131876,0.76015575,116700.0,116690.0,0.01095261]
[1755879132184,0.67515382,116700.0,116690.0,0.01095261]
[1755879134896,0.65918098,116700.0,116690.0,0.01095261]
[1755879135103,0.67521525,116700.0,116690.0,0.01095261]
[1755879135473,0.69368452,116700.0,116690.0,0.01095261]
[1755879136308,0.675228,116700.0,116690.0,0.01095261]
[1755879136544,0.74594037,116700.0,116690.0,0.01095261]
[1755879137124,0.74374037,116700.0,116690.0,0.01095261]
[1755879138058,0.74374672,116700.0,116690.0,0.01095261]
[1755879138571,0.67303435,116700.0,116690.0,0.01095261]
[1755879139597,0.67303435,116700.0,116690.0,0.4945029]
[1755879139829,0.0150172,116700.0,116690.0,0.49236048]
[1755879140061,0.00901255,116700.0,116690.0,0.49236048]
[1755879140267,0.22305255,116700.0,116690.0,0.01095261]
[1755879140471,0.33224256,116700.0,116690.0,0.01095261]
[1755879140675,0.33224256,116700.0,116690.0,0.00895261]
[1755879140882,0.33124256,116700.0,116690.0,0.00595261]
[1755879141116,0.33324256,116700.0,116690.0,0.00895261]
[1755879141934,0.33308256,116700.0,116690.0,0.00895261]
[1755879142392,0.3107773,116700.0,116690.0,0.49036048]
[1755879142656,0.3107773,116700.0,116690.0,0.49336048]
[1755879143081,0.3107773,116700.0,116690.0,0.01195261]
[1755879144166,0.31077376,116700.0,116690.0,0.49336048]
[1755879144798,0.31077376,116700.0,116690.0,0.01195261]
[1755879145414,0.30276475,116700.0,116690.0,0.01195261]
[1755879145616,0.36704123,116700.0,116690.0,0.01195261]
[1755879145835,0.002,116700.0,116690.0,0.56401001]
[1755879146286,0.2152,116700.0,116690.0,0.49336048]
[1755879146534,0.2152,116700.0,116690.0,0.01195261]
[1755879146745,0.2152,116700.0,116690.0,0.49336048]
[1755879147166,0.2152,116700.0,116690.0,0.01195261]
[1755879147594,0.2152,116700.0,116690.0,0.49336048]
[1755879148155,0.002,116700.0,116690.0,0.49336048]
[1755879148359,0.21576,116700.0,116690.0,0.49336048]
[1755879149002,0.21376,116710.0,116690.0,0.06128866]
[1755879149366,0.21376,116720.0,116700.0,0.00214224]